bitfinex-derivatives/quotes_ETHF0:USTF0_20250327
["timestamp","ask_amount","ask_price","bid_price","bid_amount"]
[1743041628919,2.8163,2024.6,2024.5,0.98774]
[1743041629418,3.80403,2024.6,2024.5,0.98774]
[1743041629613,2.8163,2024.6,2024.5,0.98774]
[1743041630619,3.80403,2024.6,2024.5,0.98774]
[1743041631721,2.8163,2024.6,2024.5,0.98774]
[1743041632523,3.80403,2024.6,2024.5,0.98774]
[1743041634214,3.80403,2024.6,2024.5,0.98777]
[1743041634923,2.8163,2024.6,2024.5,0.98777]
[1743041635320,1.4334,2024.6,2024.5,4.19557]
[1743041635526,1.4016,2024.9,2024.8,0.98763]
[1743041635718,2.7719,2024.9,2024.8,0.98763]
[1743041636028,2.0789,2024.9,2024.8,0.98763]
[1743041636316,1.3703,2024.9,2024.8,0.98763]
[1743041638516,1.3703,2024.9,2024.7,2.37226]
[1743041638722,2.3579,2024.9,2024.8,0.98763]
[1743041639022,2.3579,2024.9,2024.8,2.29813]
[1743041639023,1.3703,2024.9,2024.8,2.29813]
[1743041641013,3.2078,2025.0,2024.8,1.3105]
[1743041641218,3.2078,2025.0,2024.9,2.30348]
[1743041641625,1.39420631,2025.1,2025.0,0.98753]
[1743041641821,1.39420631,2025.1,2025.0,2.98903]
[1743041642124,0.00740631,2025.1,2025.0,2.98903]
[1743041644428,0.00740631,2025.1,2025.0,6.18903]
[1743041646531,3.2078,2025.7,2025.0,5.2015]
[1743041646825,1.3856,2025.5,2025.4,0.98734]
[1743041647226,1.3856,2025.5,2025.4,41.78734]
[1743041647931,1.3856,2025.5,2025.4,1.3334]
[1743041648132,0.98735,2025.4,2025.2,0.00740631]
[1743041648323,2.7616,2025.3,2025.2,0.00740631]
[1743041648523,2.7616,2025.3,2025.2,0.99483631]
[1743041648831,1.3856,2025.3,2025.2,0.99483631]
[1743041649031,1.3856,2025.3,2025.2,1.67763631]
[1743041650233,3.21520631,2025.7,2025.2,0.69020631]
[1743041650431,1.3796,2025.6,2025.5,0.98729]
[1743041651133,1.3796,2025.6,2025.5,2.34969]
[1743041651825,0.00740631,2025.7,2025.6,0.98724]
[1743041652025,0.00740631,2025.7,2025.6,2.41514]
[1743041655336,3.2078,2026.0,2025.9,0.98709]
[1743041656136,3.893,2026.0,2025.9,0.98709]
[1743041656436,4.5632,2026.0,2025.7,2.41667]
[1743041656623,1.4338,2025.9,2025.8,0.98714]
[1743041657936,1.4338,2025.9,2025.7,2.41667]
[1743041659335,2.42089,2025.9,2025.7,2.41667]
[1743041659532,2.42089,2025.9,2025.7,0.98717]
[1743041659742,1.3567,2025.8,2025.5,2.76325001]
[1743041659938,0.98732,2025.5,2025.2,0.00740631]
[1743041660127,2.0579,2025.4,2025.3,0.98738]
[1743041660334,2.7769,2025.4,2025.3,0.98738]
[1743041663136,1.3567,2025.4,2025.3,0.98738]
[1743041663344,3.2078,2025.7,2025.6,0.98724]
[1743041663840,2.0756,2025.8,2025.7,0.98719]
[1743041670044,2.7531,2025.8,2025.7,0.98719]
[1743041672048,1.4272,2025.8,2025.7,0.98719]
[1743041673647,1.4272,2025.8,2025.7,2.91719]
[1743041674145,1.4272,2025.8,2025.7,0.98719]
[1743041677747,7.1252,2025.8,2025.1,3.2078]
[1743041678049,0.98738,2025.3,2025.1,3.2078]
[1743041678845,3.10308,2025.3,2025.1,3.2078]
[1743041679252,2.38483,2025.2,2025.1,3.2078]
[1743041686258,2.38483,2025.2,2025.0,0.98753]
[1743041686452,1.4104,2025.1,2025.0,0.98753]
[1743041686652,2.39788,2025.1,2024.9,43.18285631]
[1743041687056,1.4104,2025.0,2024.9,43.18285631]
[1743041687451,2.39793,2025.0,2024.9,42.19530631]
[1743041687651,1.4104,2025.0,2024.9,43.18288631]
[1743041690460,2.0654,2025.0,2024.9,43.18288631]
[1743041690660,3.75533,2025.0,2024.9,42.19530631]
[1743041691266,2.7678,2025.0,2024.9,43.18288631]
[1743041691671,3.75533,2025.0,2024.9,0.00740631]
[1743041691971,0.98777,2024.5,2024.3,0.6946]
[1743041692166,1.4211,2024.4,2024.3,0.6946]
[1743041692367,2.8483,2024.4,2024.3,3.08177]
[1743041692869,2.8483,2024.4,2024.3,2.0939]
[1743041693073,2.8483,2024.4,2024.3,3.08177]
[1743041693367,2.8483,2024.4,2024.3,43.88177]
[1743041693769,2.8483,2024.4,2024.3,42.8939]
[1743041694067,3.83612,2024.4,2024.3,42.8939]
[1743041694264,2.8483,2024.4,2024.3,43.88177]
[1743041694454,2.8483,2024.4,2024.3,42.8939]
[1743041694658,2.8483,2024.4,2024.3,43.88177]
[1743041695767,3.83612,2024.4,2024.3,42.8939]
[1743041696754,3.83612,2024.4,2024.3,42.1993]
[1743041698872,7.04392,2024.4,2024.3,42.1993]
[1743041699168,7.04392,2024.4,2024.3,40.8]
[1743041700267,7.04392,2024.4,2024.3,42.1599]
[1743041701663,6.0561,2024.4,2024.3,43.14777]
[1743041702765,7.04392,2024.4,2024.3,43.14777]
[1743041702961,4.635,2024.4,2024.3,43.14777]
[1743041706471,4.635,2024.4,2024.3,2.34777]
[1743041707371,5.62282,2024.4,2024.3,2.34777]
[1743041708473,5.62282,2024.4,2024.3,1.3599]
[1743041708877,5.62282,2024.4,2024.3,2.34777]
[1743041709261,5.62282,2024.4,2024.3,1.3599]
[1743041709677,0.98792,2024.2,2024.1,0.70600631]
[1743041709975,0.98792,2024.2,2024.1,0.00740631]
[1743041710470,2.30552,2024.2,2024.1,0.00740631]
[1743041711273,1.3405,2024.3,2024.1,0.00740631]
[1743041711274,3.21520631,2024.4,2024.1,0.00740631]
[1743041711479,2.30547,2024.3,2024.2,0.98789]
[1743041711672,2.30547,2024.3,2024.2,1.66569]
[1743041711870,1.3176,2024.3,2024.2,1.66569]
[1743041712068,2.30547,2024.3,2024.2,0.6778]
[1743041712369,0.98792,2024.2,2024.1,1.31170631]
[1743041712571,2.30552,2024.2,2024.1,1.31170631]
[1743041713480,1.3176,2024.2,2024.1,2.29967631]
[1743041713979,2.30552,2024.2,2024.1,1.31170631]
[1743041719776,2.30552,2024.2,2024.1,2.29967631]
[1743041720683,2.30552,2024.2,2023.7,3.2]
[1743041720684,0.98812,2023.8,2023.7,3.2078]
[1743041720886,0.98812,2023.8,2023.7,5.3036]
[1743041721085,0.98812,2023.8,2023.7,6.29177]
[1743041721283,0.9881,2023.9,2023.7,3.08397]
[1743041721484,0.9881,2023.9,2023.8,1.4121]
[1743041726881,3.2078,2024.0,2023.8,1.4121]
[1743041727086,0.00740631,2024.4,2024.0,0.98801]
[1743041727087,3.2,2024.2,2024.0,0.98801]
[1743041727387,3.2,2024.2,2024.1,1.3287]
[1743041727585,4.18792,2024.2,2024.1,1.3287]
[1743041727887,7.39572,2024.2,2024.1,1.3287]
[1743041728287,6.4078,2024.2,2023.7,3.2078]
[1743041728484,6.4078,2024.2,2023.8,1.4386]
[1743041728680,6.4078,2024.2,2023.8,2.42671]
[1743041728882,0.98804,2024.0,2023.8,2.42669]
[1743041729082,0.98804,2024.0,2023.9,1.4386]
[1743041733396,6.4078,2024.2,2023.9,1.4386]
[1743041733591,0.98799,2024.1,2023.9,2.42663]
[1743041733889,0.98799,2024.1,2024.0,3.01642]
[1743041734486,3.2078,2024.2,2024.1,0.98797]
[1743041734686,3.2078,2024.2,2024.1,2.38927]
[1743041734891,3.2078,2024.2,2024.1,3.05497]
[1743041740594,4.5937,2024.2,2024.1,3.05497]
[1743041746597,0.00740631,2024.4,2024.3,0.98787]
[1743041747099,6.95358,2024.9,2024.4,2.46956]
[1743041747300,1.4389,2024.8,2024.7,0.98764]
[1743041748396,0.00740631,2025.0,2024.9,0.98758]
[1743041749501,0.00740631,2025.0,2024.9,41.78758]
[1743041753096,0.00740631,2025.0,2024.9,0.98758]
[1743041753994,1.41670631,2025.0,2024.9,0.98758]
[1743041757909,2.08200631,2025.0,2024.9,0.98758]
[1743041760399,0.98758,2024.9,2024.7,0.99503631]
[1743041760599,2.007,2024.8,2024.7,2.38603631]
[1743041762007,1.3157,2024.8,2024.7,2.38603631]
[1743041762305,1.3157,2024.8,2024.7,0.99503631]
[1743041762707,1.3157,2024.8,2024.7,2.36923631]
[1743041765712,2.30333,2024.8,2024.7,1.38160631]
[1743041765913,2.30333,2024.8,2024.7,0.99508631]
[1743041766113,1.3157,2024.8,2024.7,0.99508631]
[1743041766503,1.3157,2024.8,2024.7,1.66268631]
[1743041766702,1.3157,2024.8,2024.7,0.99508631]
[1743041766703,2.30333,2024.8,2024.7,0.99508631]
[1743041767109,1.3157,2024.8,2024.7,0.99508631]
[1743041767809,2.30333,2024.8,2024.7,0.99508631]
[1743041768005,1.3157,2024.8,2024.7,0.99508631]
[1743041768204,2.30333,2024.8,2024.7,0.99508631]
[1743041768403,1.3157,2024.8,2024.7,0.99508631]
[1743041768606,2.30333,2024.8,2024.7,0.99508631]
[1743041769013,2.30333,2024.8,2024.7,0.00740631]
[1743041770417,2.30333,2024.8,2024.7,0.99508631]
[1743041770914,2.30333,2024.8,2024.7,0.00740631]
[1743041772917,2.30333,2024.8,2024.5,44.0078]
[1743041772918,0.98776,2024.6,2024.4,0.98779]
[1743041773218,0.98784,2024.4,2024.3,0.98787]
[1743041773519,3.8893,2024.7,2024.6,0.98773]
[1743041773908,3.2078,2024.8,2024.6,0.98773]
[1743041774115,3.2078,2024.8,2024.7,0.98768]
[1743041774811,4.6326,2024.8,2024.7,0.98768]
[1743041775726,5.62023,2024.8,2024.7,0.98768]
[1743041775911,5.62023,2024.8,2024.6,0.9877]
[1743041776219,1.4248,2024.7,2024.6,0.9877]
[1743041779222,3.2078,2024.8,2024.7,0.98768]
[1743041779518,4.6115,2024.8,2024.7,0.98768]
[1743041779815,0.00740631,2025.0,2024.9,0.98758]
[1743041780211,0.00740631,2025.0,2024.7,0.6535]
[1743041780212,1.34720631,2025.0,2024.8,0.9876]
[1743041780411,1.34720631,2025.0,2024.9,2.34208]
[1743041780613,1.34720631,2025.0,2024.9,3.03008]
[1743041781317,1.34720631,2025.0,2024.9,1.3545]
[1743041781513,2.33473631,2025.0,2024.9,1.3545]
[1743041781919,2.33473631,2025.0,2024.8,0.98759]
[1743041782119,1.3398,2024.9,2024.8,2.34209]
[1743041782821,0.98766,2024.8,2024.6,1.64162]
[1743041783025,1.3234,2024.7,2024.6,0.98772]
[1743041783223,1.3234,2024.7,2024.5,4.6221]
[1743041783524,1.3234,2024.7,2024.6,0.98773]
[1743041783726,1.3234,2024.7,2024.6,2.40203]
[1743041786819,1.3234,2024.7,2024.6,1.4143]
[1743041787734,1.3234,2024.7,2024.6,2.40203]
[1743041788728,1.3234,2024.7,2024.6,0.98773]
[1743041789418,1.3234,2024.7,2024.4,1.33190631]
[1743041789623,0.98773,2024.6,2024.4,2.31798631]
[1743041789818,2.42137,2024.5,2024.4,0.00740631]
[1743041790028,3.08547,2024.5,2024.4,0.99522631]
[1743041790230,5.2957,2024.5,2024.4,0.99522631]
[1743041790631,6.28347,2024.5,2024.4,0.99522631]
[1743041790831,5.2957,2024.5,2024.4,0.99522631]
[1743041791227,1.4336,2024.5,2024.4,2.31802631]
[1743041792225,3.8621,2024.7,2024.6,0.98773]
[1743041792622,3.198,2024.7,2024.6,0.98773]
[1743041792929,3.8777,2024.8,2024.7,0.98768]
[1743041793537,5.194,2024.8,2024.7,2.36248]
[1743041794932,6.18163,2024.8,2024.6,1.6719]
[1743041795130,1.3536,2024.7,2024.6,2.392]
[1743041795434,2.34128,2024.7,2024.5,0.98775]
[1743041795735,0.7005,2024.6,2024.5,0.98775]
[1743041795936,2.0541,2024.6,2024.5,2.39205]
[1743041797039,2.0541,2024.6,2024.5,0.98775]
[1743041797225,2.0541,2024.6,2024.5,2.39205]
[1743041799539,2.0541,2024.6,2024.5,0.98775]
[1743041800139,2.0541,2024.6,2024.4,1.44680631]
[1743041800342,1.3422,2024.5,2024.4,0.99522631]
[1743041800530,1.3422,2024.5,2024.4,2.43462631]
[1743041805043,2.32997,2024.5,2024.4,2.43462631]
[1743041805245,1.3422,2024.5,2024.4,0.99522631]
[1743041805447,1.3422,2024.5,2024.4,2.32782631]
[1743041808441,1.3422,2024.5,2024.4,0.99522631]
[1743041809148,1.3422,2024.5,2024.4,2.41212631]
[1743041809746,2.32997,2024.5,2024.4,1.42430631]
[1743041809943,2.32997,2024.5,2024.4,0.00740631]
[1743041810252,5.53777,2024.5,2024.4,0.00740631]
[1743041812749,6.54530191,2024.5,2024.4,0.00740631]
[1743041813155,5.53777,2024.5,2024.4,0.00740631]
[1743041813987,4.55,2024.5,2024.4,0.99522631]
[1743041814185,7.748,2024.5,2024.4,2.32172631]
[1743041815568,4.55,2024.5,2024.4,2.32172631]
[1743041816263,5.53777,2024.5,2024.4,2.32172631]
[1743041816470,4.55,2024.5,2024.4,2.32172631]
[1743041817761,3.2078,2024.5,2024.4,2.32172631]
[1743041818258,3.8679,2024.8,2024.7,0.98768]
[1743041818552,3.198,2024.9,2024.8,0.98763]
[1743041818954,4.18558,2024.9,2024.7,0.98764]
[1743041819150,4.87438,2024.9,2024.7,0.98764]
[1743041819655,4.87438,2024.9,2024.5,43.17864]
[1743041819656,0.98769,2024.7,2024.5,43.17864]
[1743041819845,0.98769,2024.7,2024.5,2.37864]
[1743041820161,0.6888,2024.6,2024.5,2.37864]
[1743041820655,2.0811,2024.6,2024.5,3.73114]
[1743041824356,1.3923,2024.6,2024.5,3.73114]
[1743041825955,4.20559489,2024.9,2024.5,2.7434]
[1743041826153,1.4033,2024.8,2024.6,1.3531]
[1743041826460,1.4033,2024.8,2024.7,0.98768]
[1743041830664,0.00740631,2025.0,2024.9,0.98758]
[1743041831054,0.00740631,2025.0,2024.9,3.07688]
[1743041843765,3.2078,2025.3,2025.2,0.98743]
[1743041844067,1.3376,2025.4,2025.3,0.98738]
[1743041845858,1.3849,2025.5,2025.4,0.98734]
[1743041846053,0.00740631,2025.6,2025.5,0.98729]
[1743041846666,0.00740631,2025.6,2025.5,2.29489]
[1743041850159,0.00740631,2025.6,2025.5,43.09489]
[1743041850363,0.00740631,2025.6,2025.4,6.9753]
[1743041850563,1.39210631,2025.6,2025.4,5.988]
[1743041850768,1.4182,2025.5,2025.4,6.97531]
[1743041851267,1.4182,2025.5,2025.4,2.41371]
[1743041852266,1.4182,2025.5,2025.3,0.98735]
[1743041852463,1.4182,2025.5,2025.4,0.98734]
[1743041853169,1.4182,2025.5,2025.2,0.7145]
[1743041853470,1.4182,2025.5,2025.3,0.98737]
[1743041854066,2.40549,2025.5,2025.2,1.3729]
[1743041854261,2.40549,2025.5,2025.3,0.98737]
[1743041854262,1.4182,2025.5,2025.3,0.98737]
[1743041854572,1.4396,2025.4,2025.3,0.98737]
[1743041855770,1.4396,2025.4,2025.0,40.8]
[1743041855771,0.98748,2025.1,2025.0,40.8]
[1743041855957,0.9876,2024.9,2024.6,0.9877]
[1743041856157,3.80567,2025.0,2024.6,0.98768]
[1743041856358,1.4243,2024.9,2024.7,41.78765]
[1743041856569,1.4243,2024.9,2024.8,0.98763]
[1743041856871,1.4243,2024.9,2024.7,41.78765]
[1743041857269,1.4243,2024.9,2024.8,0.98763]
[1743041857573,1.4243,2024.9,2024.7,41.78765]
[1743041858065,2.41188,2024.9,2024.7,41.78765]
[1743041858272,2.41188,2024.9,2024.7,40.8]
[1743041858571,1.4243,2024.8,2024.7,41.78767]
[1743041858973,1.4243,2024.8,2024.7,40.8]
[1743041859169,1.4243,2024.8,2024.6,0.98771]
[1743041859369,1.4243,2024.8,2024.5,0.98774]
[1743041859567,4.6223,2024.8,2024.6,0.98772]
[1743041859966,1.3923,2024.7,2024.6,0.98772]
[1743041860874,1.3923,2024.7,2024.5,41.78775]
[1743041861069,0.7071,2024.6,2024.5,40.8]
[1743041861271,1.3923,2024.7,2024.6,0.98773]
[1743041861475,3.9149,2024.9,2024.8,0.98763]
[1743041861672,0.7071,2024.9,2024.8,0.98763]
[1743041861972,0.6741,2025.0,2024.6,3.8808]
[1743041861973,0.6741,2025.0,2024.9,0.98758]
[1743041862169,3.2078,2025.2,2025.0,0.98753]
[1743041862371,3.9221,2025.2,2025.0,0.98753]
[1743041862573,3.9221,2025.2,2025.0,0.9875]
[1743041862773,1.3345,2025.1,2025.0,0.9875]
[1743041863170,1.9973,2025.1,2025.0,0.9875]
[1743041869583,1.3345,2025.1,2025.0,0.9875]
[1743041869783,1.3345,2025.1,2025.0,1.6767]
[1743041869974,3.2078,2025.2,2025.1,0.98748]
[1743041870175,1.4171,2025.4,2025.3,0.98738]
[1743041870983,4.6249,2025.4,2025.3,0.98738]
[1743041873682,5.61224,2025.4,2025.2,0.98741]
[1743041873879,1.3919,2025.3,2025.2,0.98741]
[1743041875175,2.0526,2025.3,2025.2,0.98741]
[1743041877488,1.3919,2025.3,2025.2,0.98741]
[1743041877784,1.3919,2025.3,2025.2,1.64961]
[1743041880082,3.2078,2025.4,2025.3,0.98738]
[1743041880289,4.5287,2025.4,2025.3,2.31118]
[1743041882994,3.2078,2025.4,2025.3,2.31118]
[1743041883204,0.00740631,2025.6,2025.3,1.3238]
[1743041883499,1.40150631,2025.6,2025.5,0.98729]
[1743041883689,0.00740631,2025.6,2025.5,2.33269]
[1743041883886,0.00740631,2025.6,2025.5,3.02159]
[1743041885989,1.40150631,2025.6,2025.5,3.02159]
[1743041887297,0.00740631,2025.6,2025.5,3.02159]
[1743041887692,0.00740631,2025.6,2025.5,6.21759]
[1743041898902,1.338,2026.0,2025.9,0.98709]
[1743041899502,1.338,2026.0,2025.9,2.41579]
[1743041900303,0.00740631,2026.2,2026.1,0.98699]
[1743041900805,0.00740631,2026.2,2026.1,41.78699]
[1743041901008,0.00740631,2026.2,2026.1,45.66359]
[1743041902411,0.00740631,2026.2,2026.1,48.85859]
[1743041904305,0.7143,2026.5,2026.4,0.98685]
[1743041907906,0.98686,2026.4,2025.7,2.47527631]
[1743041908102,3.2078,2026.1,2026.0,0.98704]
[1743041908298,4.89613,2026.5,2026.2,0.98695]
[1743041908299,0.6543,2026.3,2026.2,0.98695]
[1743041909623,1.6412,2026.3,2026.1,0.98696]
[1743041910212,1.6412,2026.3,2026.2,0.98695]
[1743041910414,0.6543,2026.3,2026.2,0.98695]
[1743041912013,1.6412,2026.3,2026.1,0.98696]
[1743041912207,0.6543,2026.3,2026.2,0.98695]
[1743041912714,1.6412,2026.3,2026.1,0.98696]
[1743041914808,1.6412,2026.3,2026.2,40.8]
[1743041915613,1.6412,2026.3,2026.1,0.98696]
[1743041916009,1.6412,2026.3,2026.2,40.8]
[1743041916310,0.6543,2026.3,2025.9,0.98708]
[1743041916516,0.98706,2026.0,2025.8,2.0252]
[1743041916713,0.6864,2025.9,2025.8,3.01234]
[1743041917209,0.6864,2025.9,2025.8,43.81234]
[1743041917609,0.98698,2026.2,2026.0,0.98704]
[1743041917913,0.6724,2026.2,2026.0,0.98704]
[1743041918118,0.6724,2026.2,2026.0,0.98702]
[1743041918308,1.65936,2026.2,2026.1,1.332]
[1743041918504,1.65936,2026.2,2026.0,0.98702]
[1743041918715,1.65936,2026.2,2026.0,2.31902]
[1743041919610,0.6724,2026.2,2026.1,0.98699]
[1743041920611,1.9972,2026.2,2026.1,0.98699]
[1743041924220,1.3248,2026.2,2026.1,0.98699]
[1743041934120,3.2078,2026.3,2026.2,0.98695]
[1743041935033,3.2078,2026.3,2026.2,2.37845]
[1743041935625,1.3936,2026.4,2026.3,0.9869]
[1743041935833,1.3936,2026.4,2026.3,2.3477]
[1743041941133,0.6665,2026.6,2026.5,0.9868]
[1743041941322,3.2078,2026.7,2026.6,0.98675]
[1743041942439,3.2078,2026.7,2026.6,2.35605]
[1743041944340,3.8914,2026.7,2026.6,2.35605]
[1743041946622,3.2078,2026.7,2026.6,2.35605]
[1743041946828,1.3746,2027.1,2026.6,1.3693]
[1743041947029,0.6619,2027.0,2026.9,0.98659]
[1743041947228,1.3746,2027.1,2026.8,2.0488]
[1743041947429,1.3937,2026.9,2026.7,3.2078]
[1743041947729,1.3937,2026.9,2026.6,0.00740631]
[1743041947730,2.38033,2026.9,2026.6,0.99413631]
[1743041947937,0.6488,2026.8,2026.6,0.99413631]
[1743041948130,2.0425,2026.8,2026.6,0.99413631]
[1743041948329,2.0577,2026.7,2026.6,0.99413631]
[1743041948841,2.0577,2026.7,2026.6,0.00740631]
[1743041949034,3.0444,2026.7,2026.6,0.00740631]
[1743041949234,2.0577,2026.7,2026.6,0.99415631]
[1743041950034,2.0577,2026.7,2026.6,0.00740631]
[1743041950239,2.0577,2026.7,2026.6,0.99415631]
[1743041950839,3.06248079,2026.7,2026.6,0.99415631]
[1743041951942,2.0577,2026.7,2026.6,0.99415631]
[1743041952626,5.2517,2026.7,2026.6,0.99415631]
[1743041953538,6.25670217,2026.7,2026.6,0.99415631]
[1743041954134,1.00500217,2026.7,2026.6,0.99415631]
[1743041954333,1.00500217,2026.7,2026.6,2.41765631]
[1743041954635,3.2078,2026.8,2026.7,0.9867]
[1743041954940,3.2078,2026.8,2026.7,43.1869]
[1743041955141,2.0627,2026.9,2026.8,0.98665]
[1743041955351,2.0627,2026.9,2026.8,2.38685]
[1743041955842,2.0627,2026.9,2026.8,0.98665]
[1743041956240,2.7759,2026.9,2026.8,0.98665]
[1743041960240,2.0627,2026.9,2026.8,0.98665]
[1743041963345,2.0627,2026.9,2026.8,2.37135]
[1743041965946,1.3623,2026.9,2026.8,2.37135]
[1743041969557,2.34892,2026.9,2026.7,0.98666]
[1743041969754,4.6075,2026.8,2026.7,0.98666]
[1743041969950,5.9729,2026.8,2026.7,0.98666]
[1743041970663,6.97764713,2026.8,2026.7,0.98666]
[1743041970853,6.27284713,2026.8,2026.7,0.98666]
[1743041971053,5.2681,2026.8,2026.7,3.09176]
[1743041971254,5.2681,2026.8,2026.7,3.78876]
[1743041973561,2.0751,2026.8,2026.7,3.78876]
[1743041974366,1.3654,2026.8,2026.7,3.78876]
[1743041979174,1.3654,2026.8,2026.7,3.09176]
[1743041980781,2.35205,2026.8,2026.7,2.1051]
[1743041980974,0.9867,2026.7,2026.6,0.99411631]
[1743041981182,5.8831,2026.7,2026.6,0.99411631]
[1743041981574,8.3831,2026.7,2026.1,5.988]
[1743041981879,3.2078,2026.5,2026.0,5.2136]
[1743041982078,3.2078,2026.5,2026.2,0.98693]
[1743041982079,4.505,2026.4,2026.2,0.98693]
[1743041982269,1.9697,2026.3,2026.2,0.98693]
[1743041982472,1.9697,2026.3,2025.7,3.2078]
[1743041982670,0.98701,2026.1,2026.0,0.00740631]
[1743041982978,0.98718,2025.8,2025.5,41.5038]
[1743041983179,0.6587,2025.7,2025.6,0.98722]
[1743041983375,1.9697,2025.7,2025.6,0.98722]
[1743041983575,1.9697,2025.7,2025.5,42.8058]
[1743041983776,2.9569,2025.7,2025.5,43.08927]
[1743041983979,0.98724,2025.6,2025.5,40.8]
[1743041984281,1.4156,2025.6,2025.5,41.78729]
[1743041984477,1.4156,2025.6,2025.5,43.22109]
[1743041986071,1.4156,2025.6,2025.5,42.2338]
[1743041986281,2.40284,2025.6,2025.5,40.8]
[1743041986676,1.4156,2025.6,2025.5,0.98729]
[1743041986978,1.4156,2025.6,2025.5,2.35849]
[1743041988782,2.40287,2025.6,2025.4,45.00252631]
[1743041988984,1.4156,2025.6,2025.5,0.98729]
[1743041989183,1.4156,2025.6,2025.5,1.3712]
[1743041989485,1.4156,2025.6,2025.5,2.35849]
[1743041990282,2.40284,2025.6,2025.5,1.3712]
[1743041990488,0.98729,2025.5,2025.4,44.01520631]
[1743041990680,5.51719,2025.5,2025.4,3.21520631]
[1743041991080,4.5299,2025.5,2025.4,3.21520631]
[1743041991478,4.5299,2025.5,2025.4,4.20254631]
[1743041991881,4.5299,2025.5,2025.4,3.21520631]
[1743041992288,4.5299,2025.5,2025.4,4.20254631]
[1743041992483,4.5299,2025.5,2025.4,5.54494631]
[1743041992680,1.3329,2025.5,2025.4,5.54494631]
[1743041993381,2.32019,2025.5,2025.4,3.21520631]
[1743041993688,2.32019,2025.5,2025.4,0.00740631]
[1743041996592,3.8329,2025.5,2025.0,0.98751]
[1743041996790,0.98743,2025.2,2025.0,0.98751]
[1743041996990,5.1595,2025.1,2025.0,2.35221]
[1743041999093,4.5062,2025.1,2025.0,2.35221]
[1743042000697,1.3102,2025.1,2025.0,2.35221]
[1743042000891,3.20240631,2025.3,2025.2,0.98743]
[1743042001299,0.00740631,2025.3,2025.2,0.98743]
[1743042002289,1.36960631,2025.3,2025.2,0.98743]
[1743042002685,0.00740631,2025.3,2025.2,0.98743]
[1743042003087,4.5419,2025.9,2025.3,2.46847]
[1743042003293,1.3622,2025.8,2025.7,0.98719]
[1743042004003,1.3622,2025.8,2025.7,1.65249]
[1743042005301,3.2078,2025.9,2025.8,0.98714]
[1743042005601,3.2078,2025.9,2025.8,3.09804]
[1743042005997,4.6394,2025.9,2025.8,3.09804]
[1743042009593,0.98718,2025.8,2025.6,0.98724]
[1743042009797,1.3718,2025.7,2025.6,0.98724]
[1743042011699,2.35899,2025.7,2025.5,0.98726]
[1743042012097,1.3948,2025.6,2025.5,0.98726]
[1743042012696,1.3948,2025.6,2025.4,2.3548]
[1743042013006,1.3948,2025.6,2025.5,0.98729]
[1743042013207,1.3948,2025.6,2025.5,2.37359]
[1743042014302,1.3948,2025.6,2025.5,0.98729]
[1743042014499,2.38207,2025.6,2025.3,3.71665]
[1743042014700,2.38207,2025.6,2025.4,0.98733]
[1743042014905,2.38207,2025.6,2025.3,3.71665]
[1743042014906,1.3048,2025.5,2025.3,3.71665]
[1743042015205,1.3048,2025.5,2025.4,0.98734]
[1743042015795,2.29209,2025.5,2025.3,3.71666]
[1743042016000,0.7028,2025.4,2025.3,3.71666]
[1743042016202,2.0076,2025.4,2025.3,2.0753]
[1743042016395,2.0076,2025.4,2025.3,3.06268]
[1743042017603,2.99494,2025.4,2025.3,2.0753]
[1743042017813,2.0076,2025.4,2025.3,3.06268]
[1743042018198,2.99494,2025.4,2025.2,4.1952]
[1743042018411,1.3753,2025.3,2025.2,0.9874]
[1743042018603,1.3753,2025.3,2025.2,2.3667]
[1743042018801,2.36268,2025.3,2025.2,1.3793]
[1743042019002,2.36268,2025.3,2025.1,0.98746]
[1743042019205,1.3753,2025.2,2025.1,0.98746]
[1743042019702,9.7053,2025.2,2024.3,3.2078]
[1743042019906,9.7053,2025.2,2023.5,5.988]
[1743042019907,3.2078,2024.5,2024.4,0.98781]
[1743042020101,6.4598,2024.5,2024.4,0.98781]
[1743042020302,3.252,2024.5,2024.4,0.98781]
[1743042020606,4.6547,2024.5,2024.4,0.98781]
[1743042021502,4.6547,2024.5,2024.2,0.70120631]
[1743042021708,5.64249,2024.5,2024.3,0.98786]
[1743042022308,4.6547,2024.5,2024.3,0.98786]
[1743042022509,4.6547,2024.5,2024.2,2.13900631]
[1743042022703,4.6547,2024.5,2024.4,0.98782]
[1743042022898,0.98787,2024.3,2024.2,0.00740631]
[1743042023405,1.65795,2024.4,2024.2,0.00740631]
[1743042023606,2.40837,2024.3,2024.2,0.00740631]
[1743042024002,2.40837,2024.3,2024.2,1.36660631]
[1743042024608,2.40837,2024.3,2024.2,0.00740631]
[1743042026003,2.40837,2024.3,2024.2,1.36660631]
[1743042026206,1.4205,2024.3,2024.2,1.36660631]
[1743042026415,1.4205,2024.3,2024.2,2.35452631]
[1743042032511,2.40837,2024.3,2024.2,0.00740631]
[1743042033505,1.4205,2024.3,2024.2,0.99532631]
[1743042033708,1.4205,2024.3,2024.2,2.33862631]
[1743042035017,1.4205,2024.3,2024.2,1.35070631]
[1743042035218,2.40837,2024.3,2024.2,0.00740631]
[1743042036416,4.90837,2024.3,2024.2,0.00740631]
[1743042036922,2.40837,2024.3,2024.2,0.00740631]
[1743042037310,4.90837,2024.3,2024.2,0.00740631]
[1743042037914,3.9205,2024.3,2023.4,4.1961]
[1743042038120,0.98823,2023.6,2023.4,4.5914]
[1743042038426,3.266,2023.6,2023.4,5.57969]
[1743042038724,3.266,2023.6,2023.5,0.98826]
[1743042039022,3.266,2023.6,2023.5,2.40326]
[1743042040322,4.25424,2023.6,2023.3,2.36933631]